fUSD/lending_fUSD_20241024
["ID","MTS","AMOUNT","RATE_DAILY","PERIOD"]
[340732700,1729746646351,-500.0,0.00058568,120]
[340732701,1729746646360,-500.0,0.00058568,120]
[340732702,1729746646370,-507.11869263,0.00058568,120]
[340732703,1729746646379,-500.0,0.00058568,120]
[340732704,1729746646389,-500.0,0.00058568,120]
[340732705,1729746646398,-500.0,0.00058568,120]
[340732706,1729746646408,-499.44875784,0.00058568,120]
[340732707,1729746646417,-1047.98,0.00058568,120]
[340732708,1729746646427,-2042.12,0.00058568,120]
[340732709,1729746646436,-161.99920291,0.00058568,120]
[340732710,1729746646445,-500.0,0.00058568,120]
[340732711,1729746646455,-512.58472739,0.00058568,120]
[340732712,1729746646464,-500.0,0.00058568,120]
[340732713,1729746646473,-175.59041115,0.00058568,90]
[340732714,1729746646483,-500.0,0.00058568,120]
[340732715,1729746646492,-500.0,0.00058568,120]
[340732716,1729746646503,-86.19825087,0.00058568,120]
[340732717,1729746646526,-413.80174913,0.00058568,120]
[340732718,1729746646535,-181.68230261,0.00058568,120]
[340732719,1729746646544,-312.01594826,0.00058568,120]
[340732720,1729746646556,-187.98405174,0.00058568,120]
[340732721,1729746646566,-1908.14,0.00058568,120]
[340732722,1729746646576,-500.0,0.00058568,120]
[340732723,1729746646585,-500.0,0.00058568,120]
[340732724,1729746646596,-500.0,0.00058568,120]
[340732725,1729746646605,-18.35594826,0.00058568,120]
[340732726,1729746646617,-212.78226523,0.00058568,120]
[340732727,1729746646632,-342.21773477,0.00058568,120]
[340732728,1729746646643,-157.78226523,0.00058568,120]
[340732729,1729746646653,-500.0,0.00058568,120]
[340732730,1729746646662,-523.44376457,0.00058568,120]
[340732731,1729746646672,-500.0,0.00058568,120]
[340732732,1729746646681,-500.0,0.00058568,120]
[340732733,1729746646691,-500.0,0.00058568,120]
[340732734,1729746646701,-3822.99,0.00058568,120]
[340732735,1729746646710,-739.53,0.00058568,120]
[340732736,1729746646720,-22214.5199432,0.00058569,120]
[340732737,1729746646731,-1762.13773054,0.00058569,120]
[340732738,1729746646742,-566.72905419,0.00058569,120]
[340732739,1729746646755,-31011.61327207,0.00058569,120]
[340732740,1729746646764,-151.0,0.00058569,120]
[340732741,1729746646774,-151.0,0.00058569,120]
[340732742,1729746646783,-917.4451,0.00058579,2]
[340732743,1729746646792,-290.3734,0.00058579,2]
[340732744,1729746646801,-153.382934,0.00058579,120]
[340732745,1729746646811,-152.632995,0.00058579,120]
[340732746,1729746646820,-269.457404,0.00058579,120]
[340732747,1729746646829,-153.502764,0.00058579,120]
[340732748,1729746646839,-151.0,0.00058579,120]
[340732749,1729746646850,-275.950753,0.00058579,120]
[340732750,1729746646859,-155.212275,0.00058579,120]
[340732751,1729746646869,-155.92383,0.00058579,120]
[340732752,1729746646878,-154.247525,0.00058579,120]
[340732753,1729746646887,-151.0,0.00058579,120]
[340732754,1729746646897,-151.0,0.00058579,120]
[340732755,1729746646906,-174.49646339,0.00058579,73]
[340732756,1729746646915,-203.57418325,0.00058579,39]
[340732757,1729746646925,-188.0241,0.000586,120]
[340732758,1729746646934,-500.0,0.0005863,120]
[340732759,1729746646945,-500.0,0.0005863,120]
[340732760,1729746646955,-500.0,0.0005863,120]
[340732761,1729746646964,-500.0,0.0005863,120]
[340732762,1729746646974,-500.0,0.0005863,120]
[340732763,1729746646984,-500.0,0.0005863,120]
[340732764,1729746646993,-5539.09242447,0.00058638,13]
[340732765,1729746647004,-1981.38639005,0.00058648,12]
[340732766,1729746647013,-5539.09242447,0.00058648,13]
[340732767,1729746647023,-5539.09242447,0.00058657,13]
[340732768,1729746647033,-1981.38639005,0.00058657,12]
[340732769,1729746647043,-16617.2772734,0.00058658,13]
[340732770,1729746647052,-3962.7727801,0.00058658,12]
[340732771,1729746647061,-152.014692,0.00058658,120]
[340732772,1729746647070,-177.523634,0.00058658,120]
[340732773,1729746647080,-154.089888,0.00058658,120]
[340732774,1729746647089,-151.0,0.00058658,120]
[340732775,1729746647099,-151.0,0.00058658,30]
[340732776,1729746647108,-151.0,0.00058658,120]
[340732777,1729746647117,-151.0,0.00058658,120]
[340732778,1729746647126,-365.202638,0.00058658,120]
[340732779,1729746647136,-365.202638,0.00058658,120]
[340732780,1729746647145,-1981.38639005,0.00058658,12]
[340732781,1729746647155,-1981.38639005,0.00058659,12]
[340732782,1729746647166,-506.71,0.00058667,120]
[340732783,1729746647176,-212.45099572,0.00058667,120]
[340732784,1729746647186,-500.0,0.00058667,120]
[340732785,1729746647197,-1874.46,0.00058667,120]
[340732786,1729746647207,-500.0,0.00058667,120]
[340732787,1729746647217,-500.0,0.00058667,120]
[340732788,1729746647227,-1809.05,0.00058668,120]
[340732789,1729746647236,-1000.0,0.00058668,120]
[340732790,1729746647245,-277.16,0.00058668,120]
[340732791,1729746647255,-500.0,0.00058668,120]
[340732792,1729746647265,-227.51448464,0.00058668,120]
[340732793,1729746647274,-568.11,0.00058668,120]
[340732794,1729746647285,-151.0,0.00058668,120]
[340732795,1729746647294,-500.0,0.00058668,120]
[340732796,1729746647304,-500.0,0.00058668,120]
[340732797,1729746647313,-500.0,0.00058668,120]
[340732798,1729746647322,-514.76737238,0.00058668,120]
[340732799,1729746647332,-525.67323658,0.00058668,120]
[340732800,1729746647342,-524.63536436,0.00058668,120]
[340732801,1729746647351,-500.0,0.00058668,120]
[340732802,1729746647360,-521.41973605,0.00058668,120]
[340732803,1729746647369,-500.0,0.00058668,120]
[340732804,1729746647379,-501.35672467,0.00058668,120]
[340732805,1729746647388,-510.40449915,0.00058668,120]
[340732806,1729746647399,-509.16727764,0.00058668,120]
[340732807,1729746647410,-530.43798835,0.00058668,120]
[340732808,1729746647420,-500.0,0.00058668,120]
[340732809,1729746647430,-554.06062326,0.00058668,120]
[340732810,1729746647439,-500.0,0.00058668,120]
[340732811,1729746647448,-526.29936385,0.00058668,120]
[340732812,1729746647457,-228.863041,0.00058668,120]
[340732813,1729746647466,-530.38454298,0.00058668,120]
[340732814,1729746647475,-151.0,0.00058668,120]
[340732815,1729746647485,-536.45061669,0.00058668,120]
[340732816,1729746647494,-1047.98,0.00058668,120]
[340732817,1729746647503,-2042.12,0.00058668,120]
[340732818,1729746647514,-515.98952382,0.00058668,120]
[340732819,1729746647525,-539.91248418,0.00058668,120]
[340732820,1729746647534,-2017.85079722,0.00058668,120]
[340732821,1729746647543,-561.91353964,0.00058668,120]
[340732822,1729746647553,-378.52215644,0.00058668,120]
[340732823,1729746647563,-528.52514161,0.00058668,120]
[340732824,1729746647573,-557.79727951,0.00058668,120]
[340732825,1729746647582,-502.49111005,0.00058668,120]
[340732826,1729746647591,-500.0,0.00058668,120]
[340732827,1729746647600,-546.34997197,0.00058668,120]
[340732828,1729746647609,-500.0,0.00058668,120]
[340732829,1729746647618,-500.0,0.00058668,120]
[340732830,1729746647630,-508.00670141,0.00058668,120]
[340732831,1729746647640,-507.95051904,0.00058668,120]
[340732832,1729746647649,-516.32091067,0.00058668,120]
[340732833,1729746647659,-511.93988222,0.00058668,120]
[340732834,1729746647669,-504.30953919,0.00058668,120]
[340732835,1729746647678,-680.85,0.00058668,120]
[340732836,1729746647687,-579.68564094,0.00058668,120]
[340732837,1729746647698,-519.62706531,0.00058668,120]
[340732838,1729746647709,-525.26047037,0.00058668,120]
[340732839,1729746647718,-500.08664934,0.00058668,120]
[340732840,1729746647728,-550.07,0.00058668,120]
[340732841,1729746647737,-500.0,0.00058668,120]
[340732842,1729746647746,-500.0,0.00058668,120]
[340732843,1729746647755,-500.0,0.00058668,120]
[340732844,1729746647765,-500.0,0.00058668,120]
[340732845,1729746647774,-1089.28,0.00058668,120]
[340732846,1729746647783,-500.0,0.00058668,14]
[340732847,1729746647793,-698.25,0.00058668,120]
[340732848,1729746647803,-518.01033798,0.00058668,120]
[340732849,1729746647812,-500.0,0.00058668,120]
[340732850,1729746647822,-503.49354177,0.00058668,120]
[340732851,1729746647831,-500.0,0.00058668,120]
[340732852,1729746647840,-500.0,0.00058668,120]
[340732853,1729746647851,-500.0,0.00058668,120]
[340732854,1729746647861,-500.0,0.00058668,120]
[340732855,1729746647871,-552.95454666,0.00058668,120]
[340732856,1729746647882,-503.79204557,0.00058668,120]
[340732857,1729746647892,-500.0,0.00058668,120]
[340732858,1729746647901,-1908.14,0.00058668,120]
[340732859,1729746647910,-500.0,0.00058668,120]
[340732860,1729746647919,-500.0,0.00058668,120]
[340732861,1729746647928,-500.0,0.00058668,120]
[340732862,1729746647937,-500.0,0.00058668,120]
[340732863,1729746647947,-500.0,0.00058668,120]
[340732864,1729746647956,-500.0,0.00058668,120]
[340732865,1729746647965,-500.0,0.00058668,120]
[340732866,1729746647974,-151.0,0.00058668,120]
[340732867,1729746647983,-500.0,0.00058668,120]
[340732868,1729746647992,-210.094506,0.00058668,120]
[340732869,1729746648002,-153.00674866,0.00058668,120]
[340732870,1729746648012,-500.0,0.00058668,120]
[340732871,1729746648022,-536.19023118,0.00058668,120]
[340732872,1729746648031,-3822.99,0.00058668,120]
[340732873,1729746648040,-739.53,0.00058668,120]
[340732874,1729746648049,-10489.20644809,0.00058668,12]
[340732875,1729746648062,-398.01722633,0.00058668,12]
[340732876,1729746648073,-2735.70533876,0.00058668,12]
[340732877,1729746648084,-1224.9376738,0.00058668,12]
[340732878,1729746648096,-2984.61082352,0.00058668,12]
[340732879,1729746648105,-9906.93195025,0.00058669,12]
[340732880,1729746648114,-153.547754,0.00058669,120]
[340732881,1729746648123,-182.65126445,0.00058669,120]
[340732882,1729746648135,-1626.39873555,0.00058669,120]
[340732883,1729746648144,-1000.0,0.00058669,120]
[340732884,1729746648153,-568.11,0.00058669,120]
[340732885,1729746648162,-151.0,0.00058669,120]
[340732886,1729746648171,-152.906682,0.00058669,120]
[340732887,1729746648180,-500.0,0.00058669,120]
[340732888,1729746648189,-160.96262263,0.00058669,120]
[340732889,1729746648198,-680.85,0.00058669,120]
[340732890,1729746648208,-198.01,0.00058669,120]
[340732891,1729746648218,-1089.28,0.00058669,120]
[340732892,1729746648227,-698.25,0.00058669,120]
[340732893,1729746648236,-500.0,0.00058669,120]
[340732894,1729746648246,-154.66703,0.00058669,30]
[340732895,1729746648255,-151.0,0.00058669,120]
[340732896,1729746648264,-192.06547,0.00058669,120]
[340732897,1729746648273,-500.0,0.00058669,120]
[340732898,1729746648283,-365.202638,0.00058669,120]
[340732899,1729746648400,-365.202638,0.00058669,120]
[340732900,1729746648410,-500.0,0.00058676,120]
[340732901,1729746648419,-636.80397345,0.00058676,120]
[340732902,1729746648429,-500.0,0.00058676,21]
[340732903,1729746648438,-500.0,0.00058676,120]
[340732904,1729746648447,-500.0,0.00058676,120]
[340732905,1729746648456,-500.0,0.00058676,120]
[340732906,1729746648466,-701.32,0.00058676,120]
[340732907,1729746648475,-500.0,0.00058677,120]
[340732908,1729746648484,-680.85,0.00058677,120]
[340732909,1729746648493,-698.25,0.00058677,120]
[340732910,1729746648503,-500.0,0.00058677,120]
[340732911,1729746648512,-616.09,0.00058677,120]
[340732912,1729746648521,-500.0,0.00058677,120]
[340732913,1729746648531,-503.69523033,0.00058678,120]
[340732914,1729746648540,-503.89484547,0.00058678,120]
[340732915,1729746648550,-506.99876292,0.00058678,120]
[340732916,1729746648560,-504.25892922,0.00058678,120]
[340732917,1729746648569,-500.0,0.00058678,120]
[340732918,1729746648579,-509.40407893,0.00058678,120]
[340732919,1729746648589,-506.82190031,0.00058678,120]
[340732920,1729746648600,-503.15912604,0.00058678,120]
[340732921,1729746648610,-514.87220497,0.00058678,120]
[340732922,1729746648620,-500.13661266,0.00058678,120]
[340732923,1729746648633,-500.0,0.00058678,120]
[340732924,1729746648643,-604.00907829,0.00058678,120]
[340732925,1729746648653,-546.4010761,0.00058678,120]
[340732926,1729746648663,-500.0,0.00058678,120]
[340732927,1729746648673,-518.32356556,0.00058678,120]
[340732928,1729746648683,-503.33299361,0.00058678,120]
[340732929,1729746648693,-500.0,0.00058678,120]
[340732930,1729746648703,-505.37514169,0.00058678,120]
[340732931,1729746648713,-508.36380194,0.00058678,120]
[340732932,1729746648722,-500.0,0.00058678,120]
[340732933,1729746648732,-569.59072936,0.00058678,120]
[340732934,1729746648742,-500.0,0.00058678,120]
[340732935,1729746648752,-500.0,0.00058678,120]
[340732936,1729746648761,-505.36141243,0.00058678,120]
[340732937,1729746648771,-510.9151868,0.00058678,120]
[340732938,1729746648781,-503.39220262,0.00058678,120]
[340732939,1729746648790,-545.72229842,0.00058678,120]
[340732940,1729746648800,-528.32111234,0.00058678,120]
[340732941,1729746648810,-719.67,0.00058678,120]
[340732942,1729746648820,-503.01620182,0.00058678,120]
[340732943,1729746648829,-504.43280241,0.00058678,120]
[340732944,1729746648839,-508.95306004,0.00058678,120]
[340732945,1729746648849,-501.24129299,0.00058678,120]
[340732946,1729746648858,-516.78382194,0.00058678,120]
[340732947,1729746648868,-501.91186613,0.00058678,120]
[340732948,1729746648878,-504.59977857,0.00058678,120]
[340732949,1729746648888,-512.35699467,0.00058678,120]
[340732950,1729746648898,-504.6923027,0.00058678,120]
[340732951,1729746648907,-500.0,0.00058678,120]
[340732952,1729746648917,-500.0,0.00058678,120]
[340732953,1729746648927,-539.01479662,0.00058678,120]
[340732954,1729746648936,-517.90063727,0.00058678,120]
[340732955,1729746648946,-508.54396317,0.00058678,120]
[340732956,1729746648955,-513.88418348,0.00058678,120]
[340732957,1729746648964,-505.0391378,0.00058678,120]
[340732958,1729746648973,-500.0,0.00058678,120]
[340732959,1729746648982,-500.0,0.00058678,120]
[340732960,1729746648991,-559.66076512,0.00058678,120]
[340732961,1729746649001,-503.51118529,0.00058678,30]
[340732962,1729746649010,-503.82016071,0.00058678,120]
[340732963,1729746649019,-504.43520292,0.00058678,120]
[340732964,1729746649028,-501.843882,0.00058678,120]
[340732965,1729746649037,-501.61312199,0.00058678,120]
[340732966,1729746649046,-1809.05,0.00058678,120]
[340732967,1729746649055,-1000.0,0.00058678,120]
[340732968,1729746649064,-500.0,0.00058678,120]
[340732969,1729746649074,-500.0,0.00058678,120]
[340732970,1729746649093,-510.26749609,0.00058678,120]
[340732971,1729746649102,-277.16,0.00058678,120]
[340732972,1729746649111,-500.0,0.00058678,120]
[340732973,1729746649120,-512.02689119,0.00058678,120]
[340732974,1729746649130,-500.0,0.00058678,120]
[340732975,1729746649139,-519.99580923,0.00058678,120]
[340732976,1729746649149,-508.6561525,0.00058678,120]
[340732977,1729746649158,-409.51903183,0.00058678,120]
[340732978,1729746649167,-568.11,0.00058678,120]
[340732979,1729746649176,-509.53555854,0.00058678,120]
[340732980,1729746649186,-596.83,0.00058678,120]
[340732981,1729746649195,-523.95101324,0.00058678,120]
[340732982,1729746649204,-502.16292697,0.00058678,120]
[340732983,1729746649213,-501.81803978,0.00058678,120]
[340732984,1729746649222,-151.0,0.00058678,120]
[340732985,1729746649231,-500.0,0.00058678,120]
[340732986,1729746649240,-505.48794491,0.00058678,120]
[340732987,1729746649249,-500.0,0.00058678,120]
[340732988,1729746649259,-500.0,0.00058678,120]
[340732989,1729746649268,-500.0,0.00058678,120]
[340732990,1729746649277,-504.82736865,0.00058678,120]
[340732991,1729746649287,-500.0,0.00058678,120]
[340732992,1729746649296,-504.60671516,0.00058678,120]
[340732993,1729746649305,-551.58435149,0.00058678,120]
[340732994,1729746649314,-512.66174348,0.00058678,120]
[340732995,1729746649324,-522.20396732,0.00058678,120]
[340732996,1729746649333,-503.38048555,0.00058678,120]
[340732997,1729746649343,-506.26715839,0.00058678,120]
[340732998,1729746649356,-503.49784446,0.00058678,120]
[340732999,1729746649365,-500.0,0.00058678,120]
[340733000,1729746649375,-506.47905428,0.00058678,120]
[340733001,1729746649385,-500.0,0.00058678,120]
[340733002,1729746649395,-504.20286889,0.00058678,120]
[340733003,1729746649404,-500.0,0.00058678,120]
[340733004,1729746649414,-557.36467921,0.00058678,120]
[340733005,1729746649423,-510.66638807,0.00058678,120]
[340733006,1729746649433,-510.06831864,0.00058678,120]
[340733007,1729746649443,-517.56850117,0.00058678,120]
[340733008,1729746649453,-507.49321796,0.00058678,120]
[340733009,1729746649463,-502.87693703,0.00058678,120]
[340733010,1729746649473,-506.40979941,0.00058678,120]
[340733011,1729746649483,-501.1291984,0.00058678,120]
[340733012,1729746649492,-509.85509422,0.00058678,120]
[340733013,1729746649502,-508.58005161,0.00058678,120]
[340733014,1729746649512,-506.16946092,0.00058678,120]
[340733015,1729746649521,-508.31701475,0.00058678,120]
[340733016,1729746649531,-506.1554788,0.00058678,120]
[340733017,1729746649540,-504.3724315,0.00058678,120]
[340733018,1729746649549,-502.99010639,0.00058678,120]
[340733019,1729746649558,-505.54293647,0.00058678,120]
[340733020,1729746649568,-506.52198655,0.00058678,120]
[340733021,1729746649577,-507.26939237,0.00058678,120]
[340733022,1729746649587,-1047.98,0.00058678,120]
[340733023,1729746649598,-501.87717561,0.00058678,120]
[340733024,1729746649607,-383.94196224,0.00058678,120]
[340733025,1729746649617,-500.0,0.00058678,120]
[340733026,1729746649630,-2042.12,0.00058678,120]
[340733027,1729746649639,-506.1361501,0.00058678,120]
[340733028,1729746649649,-505.21545664,0.00058678,120]
[340733029,1729746649657,-152.70615193,0.00058678,37]
[340733030,1729746649667,-513.03095752,0.00058678,120]
[340733031,1729746649676,-506.87290265,0.00058678,120]
[340733032,1729746649685,-511.33709834,0.00058678,120]
[340733033,1729746649695,-503.99227464,0.00058678,120]
[340733034,1729746649705,-508.26641147,0.00058678,120]
[340733035,1729746649715,-502.6832182,0.00058678,120]
[340733036,1729746649724,-506.24767383,0.00058678,120]
[340733037,1729746649733,-312.90794504,0.00058678,120]
[340733038,1729746649742,-499.93575746,0.00058678,120]
[340733039,1729746649751,-478.65301073,0.00058678,120]
[340733041,1729746871041,168.23,0.00019178,2]
[340733042,1729746871237,168.23,0.00024658,2]
[340733043,1729746903150,280.55386765,0.00023,2]
[340733044,1729746947819,160.14,0.00015342,2]
[340733045,1729747415390,22.84613235,0.00019178,2]
[340733046,1729747415410,145.38386765,0.00019178,2]
[340733047,1729747520052,654.61613235,9e-05,2]
[340733048,1729747520073,800.0,9e-05,2]
[340733049,1729747520093,800.0,9e-05,2]
[340733050,1729747520112,800.0,9e-05,2]
[340733051,1729747520132,800.0,9e-05,2]
[340733052,1729747520151,164.75135541,9e-05,2]
[340733054,1729747556009,523.14907727,0.000159,2]
[340733055,1729747558168,112.09956732,0.00014,2]
[340733056,1729747558190,156.46347049,0.00014,2]
[340733057,1729747602646,643.53652951,0.00012666,2]
[340733058,1729747602665,800.0,0.00012666,2]
[340733059,1729747602684,800.0,0.00012666,2]
[340733060,1729747602703,800.0,0.00012666,2]
[340733061,1729747602722,300.0,0.00012666,2]
[340733062,1729747602746,4863.39768452,0.00012666,2]
[340733063,1729747618466,1990.69231548,0.000145,2]
[340733064,1729747618488,5832.19282766,0.000145,2]
[340733065,1729747643149,-160.14,0.00030548,2]
[340733066,1729747643170,-245.0,0.000324,2]
[340733067,1729747643191,-207.63986597,0.00032877,2]
[340733068,1729747643211,-168.23,0.00035616,120]
[340733069,1729747643229,-57.95278903,0.00036419,2]
[340733070,1729747644397,5071.49000931,0.0001305,2]
[340733071,1729747677068,3209.9418795,0.00012579,2]
[340733072,1729747677103,4199.9836435,0.00013,2]
[340733073,1729747681089,10933.08734161,0.0001,2]
[340733074,1729747699278,8677.82123882,0.0001439,2]
[340733075,1729747700185,169.6,0.00015342,2]
[340733095,1729747832272,-500.0,0.00019973,2]
[340733097,1729747832281,-329.33841472,0.0002,2]
[340733100,1729747832333,-4781.02268136,0.0002,2]
[340733101,1729747832344,-1534.75000001,0.0002,2]
[340733102,1729747832395,-11519.0,0.0002,2]
[340733103,1729747832458,-2988.54533529,0.0002,2]
[340733104,1729747832472,-24645.20728887,0.0002,2]
[340733105,1729747832485,-228180.32121024,0.0002,2]
[340733106,1729747832498,-3242.93325814,0.0002,2]
[340733107,1729747832511,-509.27977892,0.00021342,2]
[340733108,1729747832521,-523.72011963,0.00022,2]
[340733109,1729747832531,-400.46285989,0.0002421,2]
[340733110,1729747832541,-1227.61368066,0.0002425,2]
[340733111,1729747832550,-336.35433988,0.0002442,2]
[340733112,1729747832559,-214.58721097,0.00036419,2]
[340733113,1729747832568,-15412.52077083,0.00038,2]
[340733114,1729747832578,-3125.79980513,0.00041257,2]
[340733115,1729747832586,-1000.0,0.00044583,2]
[340733116,1729747832595,-1013.056,0.00045753,75]
[340733117,1729747832605,-179.99,0.00045753,50]
[340733118,1729747832614,-160.14,0.00045753,2]
[340733119,1729747832623,-169.6,0.00045753,2]
[340733120,1729747832632,-7471.5636729,0.00047688,2]
[340733121,1729747832648,-2167.0,0.00047688,2]
[340733133,1729747838423,-507.23362393,0.00019973,2]
[340733134,1729747838432,-155.71187607,0.00047688,2]
[340733135,1729747838481,-13596.62092678,0.00047688,2]
[340733136,1729747838490,-468.03,0.00047688,10]
[340733137,1729747838499,-250.0,0.00049088,120]
[340733138,1729747838510,-493.68,0.00050799,7]
[340733139,1729747838520,-1000.0,0.00052291,2]
[340733140,1729747838529,-287.10239782,0.0005249,24]
[340733141,1729747838538,-506.39143872,0.00052573,10]
[340733142,1729747838547,-504.13510164,0.00052573,10]
[340733143,1729747838556,-174.98516418,0.00052589,120]
[340733144,1729747838565,-351.71518096,0.00052589,31]
[340733145,1729747838574,-1240.07315706,0.0005259,11]
[340733146,1729747838585,-4208.89808,0.0005259,11]
[340733147,1729747838596,-3197.55,0.0005259,11]
[340733148,1729747838606,-646.8411,0.0005259,11]
[340733149,1729747838617,-3337.46909878,0.0005259,11]
[340733170,1729747840486,-255.85,0.0005259,11]
[340733171,1729747840603,-641.2750497,0.0005259,11]
[340733174,1729747843771,-3015.09128844,0.0005259,11]
[340733176,1729747846278,-1280.81103182,0.0005259,11]
[340733177,1729747846394,-671.96045409,0.0005259,11]
[340733178,1729747846405,-362.26836283,0.0005259,11]
[340733179,1729747846416,-1426.69041782,0.0005259,11]
[340733181,1729747846683,-114168.50009158,0.0005259,11]
[340733184,1729748095842,250.0,0.0001,2]
[340733185,1729748098183,300.0,0.00012,2]
[340733186,1729748100092,350.0,0.00014,2]
[340733187,1729748102580,400.0,0.00016,2]
[340733188,1729748266110,-450.0,0.00018,2]
[340733189,1729748266130,-350.0,0.0002,2]
[340733190,1729748268022,-150.0,0.0002,2]
[340733191,1729748272492,163.66,0.00015342,2]
[340733192,1729748401349,300.0,0.00019725,2]
[340733193,1729748504319,-550.0,0.00022,2]
[340733194,1729748708976,150.0,0.0001726,2]
[340733195,1729748799047,36.34,0.0002002,2]
[340733196,1729748799068,113.66,0.0002002,2]
[340733197,1729748800715,170.08,0.00015342,2]
[340733198,1729748848145,-600.0,0.00024,2]
[340733199,1729748848165,-650.0,0.00026,2]
[340733200,1729748848185,-34.50705181,0.00028,2]
[340733209,1729749031471,-665.49294819,0.00028,2]
[340733210,1729749031480,-141.66705181,0.0003,2]
[340733211,1729749031492,-608.33294819,0.0003,2]
[340733212,1729749031502,-800.0,0.00032,2]
[340733213,1729749031512,-775.0,0.000321,2]
[340733214,1729749031521,-850.0,0.00034,2]
[340733215,1729749031530,-900.0,0.00036,2]
[340733216,1729749031539,-627.39557607,0.00038,2]
[340733217,1729749031551,-322.60442393,0.00038,2]
[340733218,1729749031560,-64.7076402,0.0004,2]
[340733219,1729749031572,-935.2923598,0.0004,2]
[340733220,1729749031581,-810.445,0.0004,56]
[340733221,1729749031591,-185.36,0.00041,120]
[340733222,1729749031600,-182.4582915,0.000411,2]
[340733223,1729749031610,-421.0223737,0.000411,2]
[340733224,1729749031620,-720.36814939,0.000411,2]
[340733225,1729749031631,-2162.60947691,0.000411,2]
[340733226,1729749031640,-1280.13055009,0.00044319,2]
[340733227,1729749031655,-637.33564704,0.00044319,2]
[340733228,1729749031665,-3972.48200913,0.00044319,2]
[340733229,1729749031712,-5275.56491331,0.00044319,2]
[340733237,1729749037495,-3437.54688043,0.00044319,2]
[340733239,1729749037505,-914.68,0.00044881,2]
[340733240,1729749037513,-150.0,0.00045644,2]
[340733241,1729749037523,-261.54,0.00045675,2]
[340733242,1729749037532,-647.11,0.00045797,120]
[340733243,1729749037541,-431.94,0.00045917,2]
[340733244,1729749037551,-200.0,0.00046058,2]
[340733245,1729749037561,-250.0,0.00046132,120]
[340733246,1729749037570,-504.1,0.00046153,2]
[340733247,1729749037579,-160.08,0.00046186,2]
[340733248,1729749037588,-1000.0,0.00046316,120]
[340733249,1729749037597,-9864.24677243,0.000465,2]
[340733250,1729749037697,-4040.85305081,0.000465,2]
[340733251,1729749037711,-5285.8,0.000465,2]
[340733252,1729749037726,-1861.06627742,0.000465,2]
[340733253,1729749037737,-286.98335429,0.000465,2]
[340733254,1729749037749,-2561.05054505,0.000465,2]
[340733255,1729749037758,-3304.94608353,0.000466,2]
[340733256,1729749037767,-250.0,0.00046838,120]
[340733257,1729749037776,-250.0,0.00046843,120]
[340733258,1729749037785,-150.0,0.00046863,120]
[340733259,1729749037795,-914.68,0.00047145,2]
[340733260,1729749037804,-191.86,0.00047188,2]
[340733261,1729749037814,-175.41,0.00047243,91]
[340733262,1729749037826,-1000.0,0.00047312,2]
[340733263,1729749037835,-195.53,0.00047376,2]
[340733264,1729749037844,-261.54,0.00047959,2]
[340733265,1729749037853,-150.0,0.00048083,120]
[340733266,1729749037863,-150.0,0.00049302,120]
[340733267,1729749037872,-914.68,0.00049409,2]
[340733268,1729749037882,-500.0,0.0005,5]
[340733269,1729749037891,-261.54,0.00050243,2]
[340733270,1729749037901,-150.0,0.00050521,120]
[340733271,1729749037910,-647.11,0.00051522,120]
[340733272,1729749037920,-162.53,0.00051591,120]
[340733273,1729749037929,-914.68,0.00051673,2]
[340733274,1729749037938,-150.0,0.0005174,120]
[340733275,1729749037948,-20875.76903305,0.0005178,120]
[340733276,1729749037966,-2994.70766623,0.0005178,120]